bitfinex-derivatives/quotes_SOLF0:USTF0_20241231
["timestamp","ask_amount","ask_price","bid_price","bid_amount"]
[1735609205589,16.03888427,189.28,189.2,7.73138644]
[1735609205590,3.97172933,189.27,189.2,7.73138644]
[1735609205791,7.73138644,189.26,189.18,6.1126]
[1735609206099,2.6474,189.19,189.18,7.73138644]
[1735609207391,22.4105962,189.25,189.18,7.73138644]
[1735609207597,2.6473,189.2,189.19,7.73138644]
[1735609208194,2.6468,189.24,189.19,7.73138644]
[1735609208397,3.28,189.25,189.21,7.73138644]
[1735609208697,23.097935,189.28,189.21,7.73138644]
[1735609208899,19.12616461,189.28,189.21,7.73138644]
[1735609209097,17.10509837,189.29,189.21,7.73138644]
[1735609209400,10.25375067,189.29,189.21,7.73138644]
[1735609209598,29.37865584,189.29,189.21,7.73138644]
[1735609209900,20.00494391,189.28,189.21,7.73138644]
[1735609210099,10.82309837,189.27,189.21,7.73138644]
[1735609210898,7.73138644,189.28,189.21,7.73138644]
[1735609211599,26.85433721,189.28,189.21,7.73138644]
[1735609211799,18.55448481,189.28,189.21,7.73138644]
[1735609212198,7.73138644,189.28,189.21,7.73138644]
[1735609212495,2.6468,189.24,189.21,7.73138644]
[1735609212701,16.02913099,189.28,189.21,7.73138644]
[1735609212999,30.82403752,189.28,189.21,7.73138644]
[1735609213199,10.82309837,189.27,189.21,7.73138644]
[1735609213397,7.73138644,189.28,189.21,7.73138644]
[1735609214099,30.82157658,189.28,189.21,7.73138644]
[1735609214299,18.55448481,189.28,189.21,7.73138644]
[1735609214600,2.6469,189.23,189.21,7.73138644]
[1735609215506,2.6471,189.22,189.19,7.73138644]
[1735609216097,7.73138644,189.26,189.19,7.73138644]
[1735609216299,2.6469,189.23,189.19,7.73138644]
[1735609216999,2.6471,189.22,189.19,7.73138644]
[1735609217601,2.6472,189.21,189.19,7.73138644]
[1735609218802,2.6473,189.2,189.19,7.73138644]
[1735609220302,2.6472,189.21,189.19,7.73138644]
[1735609220499,6.282,189.29,189.19,7.73138644]
[1735609220702,6.282,189.29,189.22,7.73138644]
[1735609220999,14.591374,189.29,189.22,7.73138644]
[1735609221206,25.41447237,189.29,189.22,7.73138644]
[1735609221803,7.73138644,189.28,189.22,7.73138644]
[1735609223305,18.55448481,189.28,189.2,7.73138644]
[1735609223501,2.647,189.22,189.2,7.73138644]
[1735609227203,2.6471,189.21,189.2,7.73138644]
[1735609233000,2.647,189.22,189.2,7.73138644]
[1735609233201,2.647,189.22,189.18,2.6476]
[1735609233202,7.73138644,189.21,189.03,16.26826725]
[1735609233406,7.73138644,189.17,189.09,7.73138644]
[1735609233709,7.73138644,189.15,189.07,66.75914898]
[1735609233908,7.73138644,189.13,189.07,66.75914898]
[1735609234111,3.28,189.12,189.07,66.75914898]
[1735609234508,3.28,189.12,189.09,7.73138644]
[1735609235110,3.28,189.12,189.07,7.73138644]
[1735609236208,3.28,189.12,189.09,7.73138644]
[1735609236408,3.28,189.16,189.11,7.73138644]
[1735609237116,5.9278,189.16,189.11,7.73138644]
[1735609238214,2.6478,189.16,189.13,7.73138644]
[1735609238412,14.10309837,189.2,189.15,7.73138644]
[1735609238717,10.82309837,189.23,189.19,7.73138644]
[1735609238911,21.62767006,189.24,189.19,7.73138644]
[1735609239113,21.62767006,189.24,189.21,7.73138644]
[1735609239714,1.5121,189.28,189.21,7.73138644]
[1735609240309,18.56085343,189.29,189.23,7.73138644]
[1735609240514,10.82946699,189.3,189.25,7.73138644]
[1735609240714,32.6390565,189.33,189.25,7.73138644]
[1735609241122,10.83323078,189.32,189.25,7.73138644]
[1735609241719,7.73138644,189.31,189.25,7.73138644]
[1735609242015,7.73138644,189.31,189.23,7.73138644]
[1735609242423,2.6464,189.27,189.23,7.73138644]
[1735609242622,2.6464,189.27,189.21,12.08608642]
[1735609244130,2.646,189.3,189.22,2.6469]
[1735609244330,2.646,189.3,189.21,12.08608642]
[1735609244620,2.646,189.29,189.23,2.6468]
[1735609245624,2.646,189.29,189.22,1.5325]
[1735609245831,2.6462,189.28,189.22,1.5325]
[1735609246228,15.36608642,189.27,189.1,25.41541095]
[1735609246427,3.28,189.26,189.14,13.61858642]
[1735609246931,3.28,189.26,189.15,2.648]
[1735609247330,3.28,189.26,189.14,13.61858642]
[1735609247533,2.6471,189.22,189.16,2.6478]
[1735609247722,3.28,189.26,189.16,2.6478]
[1735609247927,3.28,189.26,189.17,12.08608642]
[1735609248126,2.6469,189.23,189.17,14.73378642]
[1735609251533,2.647,189.22,189.17,14.73378642]
[1735609252934,3.28,189.26,189.17,12.08608642]
[1735609253131,10.83323078,189.27,189.2,12.08608642]
[1735609253335,19.13036604,189.32,189.23,12.08608642]
[1735609253530,10.83323078,189.32,189.23,12.08608642]
[1735609253731,2.6462,189.28,189.24,2.6467]
[1735609254731,2.6462,189.28,189.23,12.08608642]
[1735609256229,2.646,189.3,189.25,2.6465]
[1735609257327,2.646,189.29,189.23,14.73288642]
[1735609257531,11.59875614,189.33,189.23,14.73288642]
[1735609257733,2.6465,189.26,189.21,3.1198]
[1735609257933,12.08608642,189.3,189.2,12.08608642]
[1735609258334,2.6467,189.25,189.2,12.08608642]
[1735609258629,12.08608642,189.3,189.17,12.08608642]
[1735609258630,12.08608642,189.27,189.17,12.08608642]
[1735609258825,2.6472,189.21,189.15,2.6479]
[1735609259432,2.6473,189.2,189.15,2.6479]
[1735609260837,2.6473,189.2,189.16,2.6478]
[1735609262639,10.83323078,189.26,189.17,12.08608642]
[1735609263033,10.83323078,189.26,189.18,1.5783]
[1735609263233,1.586,189.29,189.18,1.5783]
[1735609263433,2.6466,189.25,189.2,2.6472]
[1735609264639,1.586,189.29,189.2,2.6472]
[1735609264931,13.67208642,189.29,189.18,4.2259]
[1735609265441,21.95897981,189.29,189.18,4.2259]
[1735609265741,2.6468,189.24,189.18,4.2259]
[1735609266936,2.6469,189.23,189.18,4.2259]
[1735609268540,11.58644017,189.28,189.17,12.08608642]
[1735609268730,11.58644017,189.28,189.11,1.4671]
[1735609268731,12.08608642,189.26,189.14,12.08608642]
[1735609269538,12.08608642,189.23,189.11,15.15868642]
[1735609269736,4.805,189.22,189.09,5.9487]
[1735609270238,1.5159,189.21,189.09,5.9487]
[1735609270434,2.6482,189.14,189.08,21.79659475]
[1735609270641,12.08608642,189.2,189.08,21.79659475]
[1735609270940,12.08608642,189.2,189.08,18.49659475]
[1735609272636,2.6478,189.16,189.1,2.6486]
[1735609272832,10.83323078,189.21,189.14,12.08608642]
[1735609273037,1.505,189.22,189.14,12.08608642]
[1735609273237,10.83323078,189.23,189.14,12.08608642]
[1735609273435,62.58418682,189.25,189.14,12.08608642]
[1735609273436,4.9104,189.25,189.14,12.08608642]
[1735609273846,2.6472,189.21,189.16,2.6478]
[1735609274032,2.6472,189.21,189.14,12.08608642]
[1735609274237,4.9104,189.25,189.14,12.08608642]
[1735609274537,2.6474,189.2,189.13,4.1952]
[1735609274735,15.38608642,189.2,189.09,12.08608642]
[1735609274940,15.38608642,189.2,189.08,7.06160833]
[1735609275138,15.38608642,189.2,189.06,15.11708642]
[1735609275139,3.1275,189.19,189.06,15.11708642]
[1735609275336,11.40715076,189.19,189.06,15.11708642]
[1735609275543,12.08608642,189.17,189.02,7.37847031]
[1735609275731,12.08608642,189.14,189.02,19.46455673]
[1735609275937,3.3,189.13,189.02,19.46455673]
[1735609276340,3.3,189.13,189.02,12.08608642]
[1735609276739,2.6492,189.07,189.02,12.08608642]
[1735609276944,3.3,189.13,189.05,12.08608642]
[1735609277140,1.5731,189.16,189.05,12.08608642]
[1735609277945,3.3,189.17,189.05,12.08608642]
[1735609278133,3.3,189.17,189.08,12.08608642]
[1735609278134,2.6481,189.15,189.08,12.08608642]
[1735609278339,3.3,189.17,189.08,12.08608642]
[1735609279143,2.6483,189.13,189.08,12.08608642]
[1735609279345,3.3,189.17,189.08,12.08608642]
[1735609280648,15.38608642,189.17,189.05,12.08608642]
[1735609280842,15.38608642,189.17,189.03,12.08608642]
[1735609281234,2.6487,189.1,189.03,14.73558642]
[1735609281439,10.8007173,189.16,189.09,12.08608642]
[1735609281842,6.4075,189.19,189.09,12.08608642]
[1735609282344,4.8992,189.19,189.09,13.67038642]
[1735609283239,2.648,189.16,189.09,16.31918642]
[1735609284042,2.648,189.15,189.09,16.31918642]
[1735609285350,2.648,189.15,189.1,2.6487]
[1735609285540,1.6192,189.19,189.09,13.67038642]
[1735609285541,2.6478,189.17,189.12,12.08608642]
[1735609286546,4.7681,189.21,189.12,12.08608642]
[1735609286747,2.6479,189.16,189.12,12.08608642]
[1735609288351,10.80192865,189.23,189.15,12.08608642]
[1735609288545,10.80192865,189.23,189.16,1.5205]
[1735609288853,10.80192865,189.27,189.18,12.08608642]
[1735609289055,21.62767006,189.28,189.18,12.08608642]
[1735609289244,2.6466,189.25,189.19,2.6474]
[1735609289850,3.28,189.29,189.19,2.6474]
[1735609290151,2.6468,189.24,189.19,2.6474]
[1735609291451,2.6465,189.26,189.2,2.6473]
[1735609291753,3.28,189.29,189.2,2.6473]
[1735609292250,2.6465,189.26,189.2,2.6473]
[1735609292453,2.6465,189.26,189.21,2.6471]
[1735609293155,2.6465,189.26,189.22,2.647]
[1735609293453,15.36608642,189.31,189.22,2.647]
[1735609293454,2.6463,189.27,189.22,2.647]
[1735609294148,1.4766,189.32,189.21,12.08608642]
[1735609294353,2.6462,189.28,189.23,2.6468]
[1735609296959,1.4766,189.32,189.21,14.73318642]
[1735609297160,1.4766,189.32,189.21,12.08608642]
[1735609298457,2.6463,189.27,189.21,12.08608642]
[1735609299261,1.4766,189.32,189.21,12.08608642]
[1735609299559,2.6465,189.26,189.21,14.73318642]
[1735609299852,2.6463,189.27,189.21,12.08608642]
[1735609300058,2.6463,189.27,189.22,2.647]
[1735609300354,2.6463,189.27,189.21,12.08608642]
[1735609300562,2.6463,189.27,189.21,14.73318642]
[1735609300957,2.6465,189.26,189.21,14.73318642]
[1735609302860,2.6463,189.27,189.22,2.6469]
[1735609303257,2.646,189.3,189.24,2.6467]
[1735609303458,14.09114026,189.33,189.24,2.6467]
[1735609303659,3.28,189.33,189.24,2.6467]
[1735609303860,2.6461,189.29,189.24,2.6467]
[1735609304260,13.67018642,189.34,189.25,2.6466]
[1735609304465,2.6457,189.32,189.25,2.6466]
[1735609304766,13.67018642,189.34,189.25,2.6466]
[1735609304954,13.60378642,189.39,189.25,3.28]
[1735609305159,60.95378682,189.42,189.27,12.08608642]
[1735609305462,73.03987324,189.42,189.3,12.08608642]
[1735609305659,2.6452,189.35,189.3,14.73188642]
[1735609306161,2.6454,189.34,189.3,12.08608642]
[1735609306361,36.99375648,189.42,189.28,3.2045]
[1735609306665,12.08608642,189.39,189.28,3.2045]
[1735609307565,2.6457,189.32,189.28,3.2045]
[1735609308864,2.6458,189.31,189.28,3.2045]
[1735609309466,3.28,189.37,189.27,12.08608642]
[1735609309664,12.08608642,189.36,189.24,12.08608642]
[1735609309965,12.08608642,189.33,189.22,4.8132]
[1735609310557,2.6464,189.27,189.22,7.4602]
[1735609310871,12.08608642,189.33,189.22,4.8132]
[1735609311064,24.36629722,189.36,189.24,2.6467]
[1735609312165,13.56638642,189.36,189.24,2.6467]
[1735609312365,2.646,189.3,189.25,2.6465]
[1735609312567,16.84638642,189.36,189.25,12.08608642]
[1735609313067,2.6457,189.32,189.26,2.6464]
[1735609313264,16.84638642,189.36,189.26,2.6464]
[1735609313664,2.6459,189.31,189.25,14.73268642]
[1735609314470,2.6455,189.33,189.26,3.28]
[1735609314670,3.28,189.36,189.26,3.28]
[1735609315069,2.6453,189.34,189.29,2.6459]
[1735609316568,2.6455,189.33,189.29,2.6459]
[1735609320782,1.6054,189.37,189.27,1.4831]
[1735609321383,1.6054,189.37,189.27,4.1294]
[1735609321572,1.6054,189.37,189.27,1.4831]
[1735609321777,12.08608642,189.36,189.22,12.08608642]
[1735609321983,12.08608642,189.36,189.23,3.28]
[1735609322482,12.08608642,189.36,189.23,5.9267]
[1735609322782,22.88853128,189.36,189.23,5.9267]
[1735609322972,2.6461,189.29,189.23,5.9267]
[1735609323378,2.6461,189.29,189.23,3.28]
[1735609323580,2.6461,189.29,189.24,2.6467]
[1735609325980,2.6463,189.27,189.23,2.6468]
[1735609327677,2.6465,189.26,189.22,18.01308642]
[1735609328080,2.6459,189.3,189.24,2.6467]
[1735609328274,14.08244486,189.33,189.22,15.36608642]
[1735609328681,3.28,189.33,189.22,15.36608642]
[1735609328880,2.6461,189.29,189.25,2.6465]
[1735609329081,2.6461,189.29,189.22,15.36608642]
[1735609329281,21.62767006,189.34,189.25,12.08608642]
[1735609329982,21.62767006,189.36,189.27,2.6462]
[1735609330284,19.15561046,189.35,189.27,2.6462]
[1735609330485,19.15561046,189.35,189.27,3.28]
[1735609330678,10.84147027,189.35,189.29,2.646]
[1735609331074,2.6453,189.34,189.29,2.646]
[1735609331280,19.15614016,189.36,189.29,2.646]
[1735609331575,19.15614016,189.36,189.27,3.28]
[1735609332084,19.15614016,189.36,189.27,5.9263]
[1735609332285,2.6456,189.33,189.28,12.08608642]
[1735609332681,12.29617152,189.36,189.29,2.646]
[1735609332881,8.32614315,189.36,189.29,2.646]
[1735609333077,1.6054,189.37,189.29,2.646]
[1735609333981,24.78692557,189.37,189.29,2.646]
[1735609334187,3.97004639,189.36,189.29,2.646]
[1735609334376,3.97004639,189.36,189.28,12.08608642]
[1735609334582,16.05613281,189.36,189.25,15.36608642]
[1735609334780,16.05613281,189.36,189.23,3.28]
[1735609334781,24.39156984,189.36,189.23,3.28]
[1735609334985,2.6461,189.29,189.24,2.6466]
[1735609335185,2.6461,189.29,189.23,3.28]
[1735609335380,3.97004639,189.34,189.23,3.28]
[1735609335586,2.646,189.29,189.25,2.6466]
[1735609337380,2.646,189.29,189.23,3.28]
[1735609337589,7.25004639,189.33,189.22,2.6469]
[1735609337785,15.58548342,189.33,189.21,15.36608642]
[1735609337984,2.6461,189.29,189.24,2.6467]
[1735609338187,8.33543703,189.32,189.24,12.08608642]
[1735609338486,3.28,189.33,189.24,12.08608642]
[1735609339189,23.18183545,189.34,189.27,12.08608642]
[1735609339391,19.21147918,189.34,189.27,12.08608642]
[1735609339787,2.6457,189.32,189.28,2.6461]
[1735609340387,3.97008426,189.35,189.27,12.08608642]
[1735609340991,2.6459,189.31,189.27,12.08608642]
[1735609341690,3.97008426,189.35,189.27,12.08608642]
[1735609341890,2.646,189.3,189.26,3.28]
[1735609342084,3.97008426,189.35,189.24,12.08608642]
[1735609342488,23.18156344,189.35,189.24,12.08608642]
[1735609342689,2.6462,189.28,189.24,12.08608642]
[1735609343692,2.6462,189.28,189.24,14.73278642]
[1735609344088,2.646,189.3,189.24,12.08608642]
[1735609344290,2.646,189.3,189.25,2.6466]
[1735609344687,2.6461,189.29,189.25,2.6466]
[1735609345389,2.6459,189.31,189.27,2.6463]
[1735609347790,3.97010376,189.34,189.27,15.36608642]
[1735609347996,19.20717736,189.35,189.3,12.08608642]
[1735609348494,21.85237736,189.35,189.3,14.73178642]
[1735609348692,13.52124215,189.35,189.3,14.73178642]
[1735609349090,13.52124215,189.35,189.31,2.6457]
[1735609349495,2.6452,189.35,189.31,2.6457]
[1735609349897,10.87604215,189.38,189.33,12.08608642]
[1735609350101,10.87604215,189.38,189.33,15.36608642]
[1735609350699,10.87604215,189.39,189.33,15.36608642]
[1735609350895,10.87604215,189.39,189.35,2.6451]
[1735609351200,10.87604215,189.39,189.36,12.08608642]
[1735609351598,2.9892,189.44,189.36,12.08608642]
[1735609351897,6.95772516,189.44,189.36,12.08608642]
[1735609352098,26.16888648,189.44,189.36,12.08608642]
[1735609352297,2.6444,189.41,189.36,14.73098642]
[1735609352498,23.17968648,189.43,189.36,12.08608642]
[1735609352697,10.8827501,189.43,189.39,12.08608642]
[1735609353000,23.17259586,189.45,189.39,14.73068642]
[1735609353194,19.20451894,189.45,189.39,14.73068642]
[1735609353605,19.20451894,189.45,189.39,12.08608642]
[1735609353900,2.6441,189.43,189.39,12.08608642]
[1735609354496,2.6441,189.43,189.39,14.73068642]
[1735609354804,2.6439,189.45,189.39,12.08608642]
[1735609355004,12.27765029,189.46,189.39,12.08608642]
[1735609355205,3.96801168,189.46,189.39,12.08608642]
[1735609355401,12.27765029,189.46,189.39,12.08608642]
[1735609355703,1.4867,189.47,189.39,12.08608642]
[1735609355903,2.6442,189.43,189.39,12.08608642]
[1735609360511,2.6438,189.45,189.4,2.6445]
[1735609361010,10.8827501,189.48,189.43,2.644]
[1735609361209,10.8827501,189.48,189.46,12.08608642]
[1735609361412,2.6431,189.51,189.46,12.08608642]
[1735609361911,496.19607705,189.55,189.46,14.72968642]
[1735609361912,2.6431,189.5,189.46,14.72968642]
[1735609362311,2.6431,189.5,189.46,12.08608642]
[1735609364111,1.6057,189.55,189.46,12.08608642]
[1735609364410,13.69178642,189.55,189.44,3.26]
[1735609364811,0.80783775,189.54,189.44,3.26]
[1735609365111,13.69178642,189.55,189.44,3.26]
[1735609365612,2.6435,189.48,189.44,3.26]
[1735609366512,2.6435,189.47,189.44,3.26]
[1735609367400,13.69178642,189.55,189.45,2.6438]
[1735609367613,1.6057,189.55,189.44,3.26]
[1735609368409,1.6057,189.55,189.46,12.08608642]
[1735609368810,1.6057,189.55,189.44,3.26]
[1735609369612,2.6432,189.5,189.44,5.9038]
[1735609369815,1.6057,189.55,189.46,12.08608642]
[1735609370010,2.643,189.51,189.46,14.72968642]
[1735609370215,2.643,189.51,189.48,7.71535979]
[1735609370714,2.6432,189.5,189.48,7.71535979]
[1735609371016,9.32105979,189.55,189.48,7.71535979]
[1735609371404,2.6432,189.5,189.48,7.71535979]
[1735609372710,2.6428,189.52,189.48,7.71535979]
[1735609372911,9.32105979,189.55,189.48,7.71535979]
[1735609373513,2.6427,189.53,189.48,7.71535979]
[1735609373810,9.32105979,189.55,189.48,7.71535979]
[1735609374216,2.643,189.51,189.48,7.71535979]
[1735609375414,2.6428,189.53,189.5,7.71535979]
[1735609376417,2.6428,189.53,189.52,7.71535979]
[1735609378017,1.6057,189.55,189.5,7.71535979]
[1735609378217,2.6428,189.52,189.5,7.71535979]
[1735609379618,2.643,189.51,189.5,7.71535979]
[1735609379819,1.6057,189.55,189.43,3.26]
[1735609380020,1.6057,189.55,189.47,7.71535979]
[1735609380425,1.6057,189.55,189.49,7.71535979]
[1735609380819,1.6057,189.55,189.51,7.71535979]
[1735609381020,2.6428,189.52,189.51,7.71535979]
[1735609382018,2.6422,189.57,189.52,2.6428]
[1735609382226,4.75,189.62,189.56,7.71535979]
[1735609382629,2.642,189.58,189.56,7.71535979]
[1735609383529,2.6421,189.57,189.56,7.71535979]
[1735609384232,2.6421,189.57,189.53,12.0448962]
[1735609385441,1.49,189.62,189.53,12.0448962]
[1735609385838,2.6422,189.57,189.53,12.0448962]
[1735609386338,1.49,189.62,189.53,12.0448962]
[1735609387339,1.49,189.62,189.49,3.26]
[1735609387340,3.26,189.68,189.56,14.6870962]
[1735609387536,4.8832,189.68,189.56,12.0448962]
[1735609388636,2.6415,189.62,189.56,12.0448962]
[1735609388841,4.8832,189.68,189.56,12.0448962]
[1735609389642,2.6416,189.61,189.56,12.0448962]
[1735609389844,4.8832,189.68,189.56,12.0448962]
[1735609390041,2.6416,189.61,189.56,12.0448962]
[1735609390246,1.6232,189.68,189.59,12.0448962]
[1735609390542,1.6232,189.68,189.59,14.6866962]
[1735609390941,1.6232,189.68,189.59,12.0448962]
[1735609391338,1.6232,189.68,189.56,12.0448962]
[1735609392340,2.642,189.58,189.56,12.0448962]
[1735609393342,3.26,189.64,189.56,12.0448962]
[1735609393542,3.26,189.64,189.53,12.0448962]
[1735609395552,13.6619962,189.63,189.53,12.0448962]
[1735609395846,23.63932187,189.63,189.5,13.5735962]
[1735609396051,13.69519978,189.62,189.5,12.0448962]
[1735609396245,12.0448962,189.6,189.5,12.0448962]
[1735609396448,2.6431,189.5,189.47,15.3048962]
[1735609396950,2.6428,189.52,189.47,15.3048962]
[1735609398051,2.6428,189.52,189.5,12.0448962]
[1735609398453,2.6422,189.57,189.5,12.0448962]
[1735609398649,1.496,189.59,189.5,12.0448962]
[1735609399044,2.6426,189.54,189.5,12.0448962]
[1735609399753,1.496,189.59,189.5,12.0448962]
[1735609399953,2.6428,189.52,189.5,12.0448962]
[1735609400753,2.6422,189.57,189.5,12.0448962]
[1735609400954,1.496,189.59,189.5,12.0448962]
[1735609402751,2.643,189.51,189.5,12.0448962]
[1735609403360,2.6422,189.57,189.5,12.0448962]
[1735609403560,1.496,189.59,189.5,12.0448962]
[1735609404061,21.55561995,189.61,189.5,12.0448962]
[1735609404257,11.54307754,189.61,189.5,12.0448962]
[1735609404457,3.26,189.61,189.5,12.0448962]
[1735609404957,2.6425,189.55,189.5,12.0448962]
[1735609405556,12.24807497,189.6,189.5,12.0448962]
[1735609405751,3.26,189.61,189.5,12.0448962]
[1735609406160,0.80920847,189.6,189.5,12.0448962]
[1735609406564,0.80920847,189.6,189.47,12.0448962]
[1735609406565,12.85410467,189.6,189.47,12.0448962]
[1735609406758,0.80920847,189.59,189.47,12.0448962]
[1735609406957,13.05728344,189.59,189.47,12.0448962]
[1735609407173,0.80920847,189.58,189.47,12.0448962]
[1735609407383,2.6433,189.49,189.47,12.0448962]
[1735609408364,21.57019574,189.57,189.47,12.0448962]
[1735609408566,3.26,189.57,189.47,12.0448962]
[1735609409553,2.6431,189.51,189.47,12.0448962]
[1735609411063,2.6428,189.53,189.5,12.0448962]
[1735609411253,22.32186792,189.61,189.5,12.0448962]
[1735609411455,21.6166445,189.61,189.53,12.0448962]
[1735609411654,2.6422,189.57,189.53,12.0448962]
[1735609411856,2.6422,189.57,189.53,13.6483962]
[1735609412274,2.6422,189.57,189.56,7.70725552]
[1735609413060,2.6415,189.62,189.56,7.70725552]
[1735609413261,12.29076341,189.65,189.59,7.70725552]
[1735609413459,22.33406476,189.65,189.59,7.70725552]
[1735609413659,18.37010952,189.65,189.59,7.70725552]
[1735609413865,8.32680817,189.65,189.59,7.70725552]
[1735609414267,2.6419,189.59,189.55,12.04274286]
[1735609414562,10.04292236,189.65,189.55,12.04274286]
[1735609414775,2.642,189.59,189.55,12.04274286]
[1735609416668,3.9638967,189.64,189.55,12.04274286]
[1735609416868,2.6423,189.56,189.55,12.04274286]
[1735609418869,3.9638967,189.63,189.55,12.04274286]
[1735609419368,12.29070487,189.63,189.55,12.04274286]
[1735609419566,2.6416,189.61,189.55,12.04274286]
[1735609419763,3.9638967,189.64,189.55,12.04274286]
[1735609420161,2.6419,189.59,189.55,12.04274286]
[1735609420674,3.9638967,189.64,189.55,12.04274286]
[1735609421071,2.6418,189.6,189.55,12.04274286]
[1735609422162,12.29073201,189.65,189.58,12.04274286]
[1735609422362,3.96392384,189.66,189.58,12.04274286]
[1735609422761,3.96392384,189.66,189.58,13.60604286]
[1735609423270,3.96392384,189.66,189.59,2.6418]
[1735609423568,3.96392384,189.66,189.58,13.60604286]
[1735609423769,3.96392384,189.67,189.58,13.60604286]
[1735609424570,3.96392384,189.68,189.58,15.07484286]
[1735609424972,2.641,189.65,189.59,2.6418]
[1735609425670,2.6408,189.67,189.61,14.68424286]
[1735609427280,12.28240775,189.7,189.61,12.04274286]
[1735609427483,14.01220316,189.7,189.61,12.04274286]
[1735609427778,3.96296982,189.7,189.61,12.04274286]
[1735609427974,3.96296982,189.7,189.58,12.04274286]
[1735609428282,0.80977063,189.69,189.58,12.04274286]
[1735609428784,12.85251349,189.69,189.58,12.04274286]
[1735609429084,0.80977063,189.68,189.58,12.04274286]
[1735609429383,2.6418,189.6,189.58,12.04274286]
[1735609430785,2.6418,189.59,189.58,12.04274286]
[1735609431887,2.6423,189.56,189.55,12.04274286]
[1735609432282,13.82232097,189.64,189.55,12.04274286]
[1735609432480,15.54809697,189.64,189.55,12.04274286]
[1735609432785,5.5117281,189.64,189.55,12.04274286]
[1735609433485,2.6419,189.59,189.55,12.04274286]
[1735609434283,2.6419,189.59,189.56,1.6193]
[1735609435582,2.642,189.58,189.56,1.6193]
[1735609436186,2.6418,189.6,189.57,7.70580096]
[1735609436384,2.6418,189.6,189.59,7.70580096]
[1735609437491,11.57408257,189.66,189.59,7.70580096]
[1735609437492,3.26,189.66,189.59,7.70580096]
[1735609437681,2.6415,189.62,189.61,7.70580096]
[1735609439991,2.6417,189.61,189.59,7.70580096]
[1735609440191,15.52391089,189.66,189.59,7.70580096]
[1735609440387,7.22358767,189.66,189.59,7.70580096]
[1735609440687,7.70580096,189.65,189.57,7.70580096]
[1735609441682,2.642,189.58,189.57,7.70580096]
[1735609446093,2.642,189.58,189.56,7.70580096]
[1735609446790,2.642,189.58,189.57,7.70580096]
[1735609451096,7.70580096,189.59,189.5,1.475]
[1735609451396,7.70580096,189.57,189.47,62.70856742]
[1735609451589,7.70580096,189.57,189.5,7.70580096]
[1735609451788,2.6429,189.52,189.5,7.70580096]
[1735609455300,7.70580096,189.57,189.5,7.70580096]
[1735609455500,2.6427,189.53,189.5,7.70580096]
[1735609455900,2.6427,189.53,189.52,7.70580096]
[1735609456891,2.6425,189.55,189.52,7.70580096]
[1735609457096,2.6425,189.55,189.54,7.70580096]
[1735609459799,2.6427,189.53,189.52,7.70580096]
[1735609460000,7.70580096,189.57,189.5,7.70580096]
[1735609460303,10.04583967,189.58,189.52,7.70580096]
[1735609460509,19.97702976,189.59,189.54,7.70580096]
[1735609460510,10.04583967,189.59,189.54,7.70580096]
[1735609461000,9.80686362,189.6,189.54,7.70580096]
[1735609461501,1.5025,189.6,189.54,7.70580096]
[1735609461896,9.80686362,189.6,189.54,7.70580096]
[1735609462299,1.5025,189.6,189.54,7.70580096]
[1735609463005,5.46734242,189.6,189.54,7.70580096]
[1735609463302,13.77170604,189.6,189.54,7.70580096]
[1735609463603,2.6424,189.55,189.54,7.70580096]
[1735609464705,2.6426,189.54,189.52,7.70580096]
[1735609465203,1.5025,189.6,189.52,7.70580096]
[1735609465204,27.07526853,189.6,189.52,7.70580096]
[1735609465405,4.7625,189.6,189.54,7.70580096]
[1735609466404,2.6424,189.55,189.54,7.70580096]
[1735609467303,7.70580096,189.59,189.52,7.70580096]
[1735609467503,2.6427,189.53,189.52,7.70580096]
[1735609467805,7.70580096,189.57,189.5,7.70580096]
[1735609468501,2.6431,189.51,189.5,7.70580096]
[1735609475111,2.6428,189.52,189.5,7.70580096]
[1735609475312,8.30395813,189.59,189.51,7.70580096]
[1735609475612,27.07943828,189.6,189.54,7.70580096]
[1735609475913,14.81027649,189.6,189.54,7.70580096]
[1735609476113,27.08041791,189.6,189.56,7.70580096]
[1735609476314,3.26,189.6,189.56,7.70580096]
[1735609476510,2.6421,189.58,189.56,7.70580096]
[1735609476908,12.27132309,189.62,189.56,7.70580096]
[1735609477113,25.88937006,189.63,189.61,7.70580096]